Cogmind - Beta 16 @@@ ROGUE MODE // 2025.10.22 @ 21:52:15 Player: Finestep Result: Destroyed by P-70 Sage with High-powered Shock Rifle Performance ------------- Evolutions (6) 3000 Regions Visited (16) 3200 Robots Destroyed (182) 910 Value Destroyed (7266) 7266 Prototype IDs (27) 540 Alien Tech Used (2) 400 Bonus (4707) 4707 TOTAL SCORE: 20023 Bonus ------- Triggered High Security 500 High Alert Combat Kills 661 Follower Combat Kills 2291 Registered with UFD 300 Met Optimus in HQ 500 Met Imprinter 300 Met Zhirov 300 Friendly Fire -145 Cogmind --------- Core Integrity 0/1150 Matter 169/300 Energy 313/315 System Corruption 10% Temperature Cool (0) Movement Rolling (110) Ox1 Location -4/Factory Parts ------- > --- POWER (2) -------- Neutrino Core > --- PROPULSION (4) --- Centrium Wheel Centrium Wheel > --- UTILITY (9) ------ High-capacity Storage Unit Advanced Terrain Scan Processor Improved Targeting Computer Core Analyzer Graphene Brace > --- WEAPON (4) ------- Heavy Gatling Laser Heavy Mace > --- INVENTORY (20) --- Armored Medium Treads Advanced Heat Sink Energy Well (350) Advanced Sensor Array Advanced Signal Interpreter Advanced Signal Interpreter IFF Parser Experimental Terrain Scanner Makeshift Transmission Jammer Advanced Thermal Shield Advanced Shield Generator Advanced Hacking Suite Hacking Drone Bay (1/1) Bomb Factory No. 2 Matter Neutralizer Heavy Rocket Launcher Multitool Peak State ------------ > --- POWER ------------ Fusion Reactor Antimatter Reactor > --- PROPULSION ------- Heavy Treads Heavy Siege Treads > --- UTILITY ---------- High-capacity Storage Unit Experimental Terrain Scanner Advanced Terrain Scan Processor Core Analyzer Makeshift Transmission Jammer Improved Medium Armor Plating Graphene Brace Advanced Focal Shield Hacking Drone Bay > --- WEAPON ----------- Heavy Beamcaster Advanced Plasma Cannon KE Penetrator Railgun > --- INVENTORY -------- Neutrino Core Armored Medium Treads Centrium Wheel Energy Well Improved Matter Compressor Makeshift Transmission Jammer Advanced Hacking Suite Authchip [R/Combat] Bomb Factory No. 2 Long-range Proton Cannon Heavy Disruptor Cannon Heavy Rocket Launcher Multitool Heavy Mace [Rating: 123] Favorites ----------- Power Antimatter Reactor Engine Light Deuterium Engine Power Core Micro Nuclear Core Reactor Antimatter Reactor Propulsion Light Treads Treads Light Treads Leg Aluminum Leg Wheel Overtuned Scrapsphere Utility High-capacity Storage Unit Device Scrap Suit Storage High-capacity Storage Unit Processor Improved Signal Interpreter Hackware Makeshift Hacking Suite Protection Layered Medium Armor Plating Weapon Heavy Beamcaster Energy Gun Heavy Beamcaster Energy Cannon Phase Cannon Ballistic Gun Assault Rifle Ballistic Cannon Improved Light Cannon Launcher Heavy Rocket Launcher Special Weapon Mining Laser Impact Weapon Heavy Mace Slashing Weapon Axe Build | -11 -10 -10 -8 -6 -6 -6 -6 -5 -5 -5 -5 -5 -5 -5 -4 -4 ------- Run | Yrd Mat Sub Scr Fac Low Low Zio Pro Fac Was Fac Upp Upp Zhi Pro Fac Slots Evolved 12 | . . . . 8 . . . . 2 . . . . . . 2 Power 1 | . . . . 1 . . . . . . . . . . . . Propulsion 2 | . . . . 2 . . . . . . . . . . . . Utility 7 | . . . . 4 . . . . 2 . . . . . . 1 Weapon 2 | . . . . 1 . . . . . . . . . . . 1 Parts Attached 156 | 7 4 11 9 30 5 1 7 5 4 14 9 5 6 2 3 34 Power 20 | 1 . 3 2 4 1 1 1 1 . 1 . 1 . 1 . 3 Engine 7 | 1 . 2 2 1 . . . . . . . . . . . 1 Core 8 | . . 1 . 3 . 1 1 1 . . . . . . . 1 Reactor 5 | . . . . . 1 . . . . 1 . 1 . 1 . 1 Propulsion 29 | 2 4 1 2 6 1 . . 1 . 2 2 1 2 . . 5 Treads 17 | . 2 1 . 5 . . . 1 . 2 2 1 1 . . 2 Leg 5 | 2 2 . . 1 . . . . . . . . . . . . Wheel 7 | . . . 2 . 1 . . . . . . . 1 . . 3 Hover . | . . . . . . . . . . . . . . . . . Flight . | . . . . . . . . . . . . . . . . . Utility 62 | 2 . 2 1 12 1 . 5 3 2 4 5 2 2 1 3 17 Device 31 | 1 . . . 4 1 . 4 1 1 3 3 1 2 . 1 9 Storage 5 | 1 . 1 . . . . . . . . . 1 . 1 . 1 Processor 9 | . . . . 4 . . . 1 . . . . . . 1 3 Hackware 3 | . . . . . . . . . . . 1 . . . . 2 Protection 14 | . . 1 1 4 . . 1 1 1 1 1 . . . 1 2 Artifact . | . . . . . . . . . . . . . . . . . Weapon 45 | 2 . 5 4 8 2 . 1 . 2 7 2 1 2 . . 9 Energy Gun 8 | . . . . 1 . . . . . 3 . . 2 . . 2 Energy Cannon 8 | . . 1 . 2 . . . . 2 2 . . . . . 1 Ballistic Gun 20 | 2 . 2 2 2 2 . 1 . . 2 1 1 . . . 5 Ballistic Cannon 2 | . . . 2 . . . . . . . . . . . . . Launcher 2 | . . . . 2 . . . . . . . . . . . . Special Weapon 4 | . . 2 . . . . . . . . 1 . . . . 1 Impact Weapon 1 | . . . . 1 . . . . . . . . . . . . Slashing Weapon . | . . . . . . . . . . . . . . . . . Piercing Weapon . | . . . . . . . . . . . . . . . . . Special Melee Weapon . | . . . . . . . . . . . . . . . . . Unidentified Prototypes 8 | . . . . 1 . . 2 . . . . . . 3 . 2 Corrupted Parts 1 | . . . . . . . . . . . . . . . 1 . System Corruption 1 | . . . . . . . . . . . . . . . 1 . Parts Lost 60 | . . 5 2 11 3 1 . 1 . 5 1 4 4 . 1 22 Power 9 | . . 1 1 2 . . . 1 . 1 . 1 . . . 2 Propulsion 13 | . . 1 . 4 1 . . . . 2 . 1 1 . 1 2 Utility 20 | . . 1 1 1 1 . . . . 1 1 2 2 . . 10 Weapon 18 | . . 2 . 4 1 1 . . . 1 . . 1 . . 8 Highest Loss Streak 9 | . . 2 2 3 3 1 . 1 . 5 1 3 2 . 1 9 To Critical Strikes . | . . . . . . . . . . . . . . . . . Average Backups 15 | 4 7 5 16 17 17 17 16 17 17 17 18 15 17 17 18 17 Power . | . 1 . . . 1 1 1 1 . . 1 . 1 1 1 1 Propulsion . | 3 4 1 1 . . . . . 1 . . . 1 1 . 1 Utility 6 | . . . 5 7 8 8 8 8 8 9 9 6 7 8 10 9 Weapon 4 | . 2 2 7 5 5 5 5 5 5 5 5 6 6 5 5 3 Tool/Special . | . . . . . . . . . . . . . . . . . Unused Backups 34 | . 1 5 5 4 . . 3 2 1 2 1 . 1 1 . 8 Power 5 | . 1 1 . . . . . 1 1 . . . . . . 1 Propulsion 5 | . . 3 . 1 . . . . . . . . 1 . . . Utility 17 | . . 1 3 3 . . 3 . . . 1 . . . . 6 Weapon 7 | . . . 2 . . . . 1 . 2 . . . 1 . 1 Tool/Special . | . . . . . . . . . . . . . . . . . Average Slot Usage (%) 89 | . 100 85 96 88 91 92 90 86 93 77 87 87 89 73 87 83 Engine 5 | . 14 8 13 5 6 . . . . 1 . . . . . . Core 3 | . . 5 . 3 3 12 12 8 11 5 5 . . . . . Reactor 2 | . . . . . 2 . . . . 2 5 10 11 11 10 8 Treads 16 | . 9 27 27 10 7 6 6 6 11 8 15 16 13 11 11 7 Wheel 5 | . . . . 13 17 20 20 19 11 5 1 . . . . 2 Device 13 | . 14 2 . 12 13 13 15 13 22 27 25 23 26 28 23 20 Storage 7 | . 14 2 14 6 6 6 6 6 5 5 5 10 11 11 5 5 Processor 2 | . . . . 5 6 6 4 4 5 . . . . . 4 11 Protection 6 | . . 9 10 6 6 6 3 6 5 4 4 5 5 5 10 4 Energy Gun 2 | . . . . . . . . . . 5 14 11 11 . 10 4 Energy Cannon 3 | . . . 4 . . 6 11 6 6 5 1 . 3 . 5 6 Ballistic Gun 11 | . 28 22 14 14 19 13 6 13 9 . . 4 1 . . 8 Ballistic Cannon 2 | . . . 9 2 . . . . . . . . . . . . Peak Build Rating 123 | 7 8 13 22 62 69 62 71 70 81 87 92 100 101 102 102 123 Average Rating 55 | 6 7 10 14 56 61 60 63 62 79 71 89 97 98 85 95 108 On Entrance 59 | . 7 8 8 21 61 60 62 65 70 81 87 92 100 101 102 93 Avg Prop Armor Cover (%) 7 | . . . . 10 6 5 5 5 10 10 3 . 17 . . 9 Naked Turns . | . . . . . . . . . . . . . . . . . Heaviest Build 122 | 13 13 55 58 78 81 80 90 90 95 107 102 112 117 110 111 122 Greatest Support 145 | 20 40 40 40 16 28 28 28 28 16 16 128 128 140 140 140 145 Greatest Overweight (x) 13 | 2 . 1 6 4 5 2 3 5 5 13 12 . 7 . 1 5 Average Overweight (x) 1 | . . . 1 3 2 2 2 2 5 9 . . 1 . . 2 Largest Inventory Capacity 20 | 8 8 20 20 20 20 20 20 20 20 20 20 20 20 20 20 20 Average Capacity 17 | 7 8 5 20 20 20 20 20 20 20 20 20 20 20 20 20 20 Most Carried 20 | 7 8 8 20 20 20 20 20 20 20 20 20 20 20 20 20 20 Average Carried 16 | 4 7 5 17 18 18 19 19 19 19 19 19 17 19 19 19 18 Final Capacity 20 | 8 8 20 20 20 20 20 20 20 20 20 20 20 20 20 20 20 Final Carried 20 | 7 8 3 20 18 19 19 19 20 20 20 20 20 20 20 19 18 Scrap Suit Usage (%) 19 | . . . . 99 26 73 1 1 . . 14 56 6 . . 38 Parts Cannibalized 30 | . . . . 9 3 . . . . . . 3 . . . 15 Class Distribution -------------------- 27% | Mutant 26% | Scavenger-Tank 13% | Scavenger-Mutant 8% | Tank 7% | Derelict-Tank 4% | Derelict-Gunner 4% | Scavenger-Scrapper 4% | Scavenger-Gunner Dominant Class ---------------- Mutant | -10/Materials Scavenger-Mutant | -10/Subcaves Mutant | -8/Scraptown Scavenger-Scrapper | -6/Factory Tank | -6/Lower Caves Tank | -6/Lower Caves Scavenger-Gunner | -6/Zion Derelict-Gunner | -5/Proximity Caves Derelict-Gunner | -5/Factory Scavenger-Mutant | -5/Waste Scavenger-Tank | -5/Factory Scavenger-Tank | -5/Upper Caves Scavenger-Tank | -5/Upper Caves Scavenger-Mutant | -5/Zhirov Derelict-Tank | -4/Proximity Caves Scavenger-Tank | -4/Factory Resources | -11 -10 -10 -8 -6 -6 -6 -6 -5 -5 -5 -5 -5 -5 -5 -4 -4 ----------- Run | Yrd Mat Sub Scr Fac Low Low Zio Pro Fac Was Fac Upp Upp Zhi Pro Fac Matter Collected 7757 | 324 268 546 434 1604 537 201 136 298 . 269 229 394 221 312 276 1708 Remotely 289 | . . . . . . . . . . 269 20 . . . . . Salvage Created 9732 | 178 352 385 . 1880 537 127 . 507 . 289 747 647 494 312 270 3007 Parts 434 | 16 21 34 . 91 11 . . 27 . 7 29 23 28 1 9 137 Haulers Intercepted 8 | . 2 . . 2 . . . . . . 2 . . . . 2 Recyclers Shooed 13 | 1 1 . . 5 . . . . . . 3 . . . . 3 Parts Field Recycled 3 | . . . . 3 . . . . . . . . . . . . Retrieved Matter 29 | . . . . 29 . . . . . . . . . . . . Parts Self-Destructed 103 | . . 17 . . 6 4 . 24 . . . 18 26 . 8 . Prevented 13 | . . . . . . . . 11 . . . . . 1 1 . Parts Restored . | . . . . . . . . . . . . . . . . . Kills | -11 -10 -10 -8 -6 -6 -6 -6 -5 -5 -5 -5 -5 -5 -5 -4 -4 ------- Run | Yrd Mat Sub Scr Fac Low Low Zio Pro Fac Was Fac Upp Upp Zhi Pro Fac Combat Hostiles Destroyed 131 | . 4 12 . 24 11 4 . 11 . 1 6 8 15 . 4 31 Melee 1 | . . . . 1 . . . . . . . . . . . . Guns 92 | . 4 12 . 17 5 1 . 7 . . 5 8 8 . 1 24 Cannons 16 | . . . . 5 . . . 4 . 1 . . . . 1 5 AOE 16 | . . . . 1 5 3 . . . . . . 5 . 2 . Classes Destroyed 24 | 2 5 3 . 5 2 1 . 1 . 1 1 . 1 . . 2 Worker 8 | . 1 . . 1 . . . . . . 1 . . . . 5 Builder 8 | . . . . 1 . . . . . . . . . . . 7 Tunneler 5 | 5 . . . . . . . . . . . . . . . . Hauler 8 | . 2 . . 2 . . . . . . 2 . . . . 2 Recycler 12 | 1 1 . . 4 . . . . . . 1 . . . . 5 Minesweeper 1 | . . . . . . . . . . . . . 1 . . . Mechanic 1 | . . . . 1 . . . . . . . . . . . . Operator 3 | . 1 . . . . . . . . . 1 . . . . 1 Watcher 5 | . 1 . . 2 . . . . . . 2 . . . . . Swarmer 39 | . . 4 . 10 . . . 6 . . . 2 9 . . 8 Saboteur 1 | . . . . . . . . . . . 1 . . . . . Grunt 31 | . 4 . . 6 7 2 . . . . 3 1 . . 3 5 Brawler 2 | . . . . . . 1 . 1 . . . . . . . . Duelist 4 | . . . . . 2 . . 1 . . 1 . . . . . Sentry 9 | . . . . 2 1 1 . 1 . . . 2 . . . 2 Specialist 2 | . . . . . . . . . . . . . . . . 2 Hunter 14 | . . . . 4 . . . 1 . . . 2 2 . . 5 Programmer 12 | . . . . 2 . . . . . . . 1 4 . . 5 Heavy 4 | . . . . . . . . . . . . . . . . 4 Behemoth 3 | . . . . . . . . 1 . . 1 . . . 1 . Compactor 1 | . . . . . . . . . . 1 . . . . . . Artisan 1 | . . 1 . . . . . . . . . . . . . . Subdweller 8 | . . 8 . . . . . . . . . . . . . . Decomposer 1 | . . . . . . . . . . . . 1 . . . . Packrat 2 | . . . . . . . . . . . . 2 . . . . Thief 1 | . . . . . 1 . . . . . . . . . . . Best Kill Streak 20 | 4 3 4 . 4 7 3 . 6 . 1 3 3 5 . 3 20 Combat Bots Only 8 | . 2 4 . 4 7 3 . 6 . 1 3 3 5 . 3 8 Max Kills in Single Turn 4 | 1 1 1 . 2 2 1 . 1 . 1 1 1 4 . 1 3 Gunslinging 1 | . . . . . . . . . . . . . 1 . . . Exploded 4 | . . . . 1 2 1 . . . . . . 4 . 1 . Melee 1 | . . . . 1 . . . . . . . . . . . . Uniques/NPCs Destroyed . | . . . . . . . . . . . . . . . . . Combat | -11 -10 -10 -8 -6 -6 -6 -6 -5 -5 -5 -5 -5 -5 -5 -4 -4 -------- Run | Yrd Mat Sub Scr Fac Low Low Zio Pro Fac Was Fac Upp Upp Zhi Pro Fac Hostile Shots Fired 1118 | . 15 87 19 202 41 32 . 63 . 6 86 67 69 . 33 398 Missed 319 | . 3 22 4 58 14 13 . 17 . . 22 21 18 . 15 112 Hits 799 | . 12 65 15 144 27 19 . 46 . 6 64 46 51 . 18 286 Melee 31 | . . . . . 3 . . . . 6 7 . . . . 15 Projectile 768 | . 12 65 15 144 24 19 . 46 . . 57 46 51 . 18 271 AOE 5 | . . 4 . . . . . . . . . . . . . 1 Critical Strikes 38 | . . 1 1 2 1 2 . 2 . 2 4 . 2 . 2 19 Actively Blocked 22 | . . . . . . . . . . . 1 . 2 . 2 17 Part Disruptions 3 | . . . . . . 1 . . . . . . . . . 2 Damage Taken 16147 | . 144 1285 196 2270 506 267 . 803 . 309 1524 769 972 . 459 6643 Core 1854 | . 22 78 24 100 . 35 . 69 . 68 158 64 137 . . 1099 Absorbed by Shields 518 | . . . . . . . . . . . . 138 . . . 380 Reduced by Siege Mode 596 | . . . . . . . . . . . . 5 . . 28 563 Redirected to Shielding 158 | . . . . 95 63 . . . . . . . . . . . Ignored by Resistances 760 | . . . . . . . . . . . . . . . . 760 Regen/Repaired (Parts) 1129 | . . . . 210 18 . 631 . . 28 62 30 . . . 150 Core Remaining (%) 70 | 100 . . 50 . . . . 76 . . . . . . 57 . Volleys Fired 616 | 17 30 84 . 117 19 18 1 32 2 18 51 27 23 . 12 165 Largest 4 | 2 2 2 . 3 3 3 1 3 1 3 3 3 3 . 3 4 Hottest 304 | 40 40 100 . 148 81 200 85 148 85 215 260 194 260 . 244 304 Shots Fired 1387 | 34 60 133 . 269 43 37 1 75 2 39 124 81 56 . 31 402 Gun 1045 | 34 60 99 . 192 38 24 . 46 . 13 108 81 43 . 19 288 Cannon 278 | . . . . 76 . 8 1 29 2 26 12 . 8 . 9 107 Launcher 26 | . . . . . 5 5 . . . . 2 . 5 . 3 6 Special 38 | . . 34 . 1 . . . . . . 2 . . . . 1 Kinetic 832 | 34 60 99 . 230 38 24 . 46 . 13 9 27 8 . . 244 Thermal 495 | . . 34 . 39 . 8 1 29 2 25 111 54 42 . 18 132 Explosive 26 | . . . . . 5 5 . . . . 2 . 5 . 3 6 Electromagnetic 31 | . . . . . . . . . . 1 . . 1 . 10 19 Robot Hit Streak 26 | 10 5 21 . 23 14 5 . 11 . 11 10 9 10 . 8 26 Robot Miss Streak 5 | 4 4 2 . 3 2 4 . 3 . 1 5 4 2 . 2 4 Penetration Max 2 | . . . . 2 1 . . . . . 1 . . . . 2 Secondary Targets 12 | . . 2 . 3 . . . . . . . 3 1 . . 3 Max Gunslinging Chain 1 | . . 1 . 1 . . . . . . . 1 1 . . 1 Shots Hit Robots 860 | 20 33 82 . 155 33 12 . 41 . 31 68 51 34 8 22 270 Core Hits 377 | 7 15 24 . 65 30 13 . 22 . 4 24 20 19 2 15 117 Critical Kills 19 | . . . . 8 . . . . . . . 1 3 1 . 6 Critical Parts Destroyed 17 | 1 . . . 10 1 . . . . . 1 . . 1 . 3 Critical Strikes 56 | 1 . 1 . 20 1 . . . . 2 8 6 4 2 1 10 Burn 16 | . . . . 1 . . . . . . 7 5 1 . 1 1 Meltdown 4 | . . . . . . . . . . . . . 2 . . 2 Destroy 32 | 1 . 1 . 18 . . . . . 2 1 1 1 . . 7 Blast 1 | . . . . 1 . . . . . . . . . . . . Smash 3 | . . . . . 1 . . . . . . . . 2 . . Melee Attacks 18 | . . . . 3 6 . . . . . . . . 8 . 1 Impact 18 | . . . . 3 6 . . . . . . . . 8 . 1 Slashing . | . . . . . . . . . . . . . . . . . Piercing . | . . . . . . . . . . . . . . . . . Sneak Attacks . | . . . . . . . . . . . . . . . . . Combat Hostiles . | . . . . . . . . . . . . . . . . . Follow-up Attacks . | . . . . . . . . . . . . . . . . . Damage Inflicted 23440 | 234 465 973 . 3157 1600 739 . 982 . 775 1912 1291 1552 560 826 8374 Guns 14855 | 234 461 969 . 2053 529 268 . 571 . 100 1623 1291 714 . 293 5749 Cannons 4180 | . . . . 960 . . . 411 . 675 96 . 138 . 261 1639 Explosions 3457 | . . . . 85 809 471 . . . . 156 . 700 . 272 964 Melee 880 | . . . . 58 262 . . . . . . . . 560 . . Ramming 68 | . 4 4 . 1 . . . . . . 37 . . . . 22 Kinetic 11340 | 234 461 969 . 2392 529 268 . 571 . 100 184 472 162 . . 4998 Thermal 7239 | . . . . 621 . . . 411 . 675 1615 819 690 . 401 2007 Explosive 3377 | . . . . 85 809 471 . . . . 76 . 700 . 272 964 Electromagnetic 536 | . . . . . . . . . . . . . . . 153 383 Impact 880 | . . . . 58 262 . . . . . . . . 560 . . Slashing . | . . . . . . . . . . . . . . . . . Piercing . | . . . . . . . . . . . . . . . . . Highest Corruption 10 | . . . . 3 3 4 4 . . . 1 2 6 6 7 10 Average Corruption 3 | . . . . 2 3 3 4 . . . 1 1 4 6 6 4 Corruption Purged . | . . . . . . . . . . . . . . . . . Corruption Blocked . | . . . . . . . . . . . . . . . . . Effects 156 | . . . . 13 18 19 1 . . . 5 13 18 11 11 47 Message Errors 37 | . . . . 3 2 5 . . . . 2 5 3 2 2 13 Matter Fused 46 | . . . . 5 8 7 1 . . . . 4 4 3 6 8 Heat Flow Errors 16 | . . . . 2 2 2 . . . . . . 3 . 1 6 Energy Discharges 11 | . . . . . . 2 . . . . . 2 2 2 . 3 Parts Rejected 2 | . . . . . . . . . . . . . 1 . . 1 Parts Fused 4 | . . . . . . 1 . . . . . . 1 . . 2 Data Loss (minor) 15 | . . . . . 3 1 . . . . 1 1 2 2 1 4 Data Loss (major) 5 | . . . . 1 . 1 . . . . . . . 2 . 1 Misfires 9 | . . . . 1 2 . . . . . 1 . 1 . 1 3 Alerts 3 | . . . . . . . . . . . 1 1 . . . 1 Weapon Failures 8 | . . . . 1 1 . . . . . . . 1 . . 5 Overload Shots . | . . . . . . . . . . . . . . . . . Overflow Damage 460 | . . . . 14 78 . . 12 . . 7 . 54 264 . 31 Projectiles 37 | . . . . . . . . 12 . . . . . . . 25 Explosions 109 | . . . . 14 35 . . . . . . . 54 . . 6 Melee 314 | . . . . . 43 . . . . . 7 . . 264 . . Knockbacks 10 | . . . . 8 1 . . . . . . . . 1 . . Impact 3 | . . . . 1 1 . . . . . . . . 1 . . Kinetic 7 | . . . . 7 . . . . . . . . . . . . Secondary . | . . . . . . . . . . . . . . . . . Self-Inflicted Damage 249 | . . . . 49 . . . . . . 38 . 75 . . 87 Shots 8 | . . . . 1 . . . . . . 1 . 2 . . 4 Rammed 7 | . 1 2 . 1 . . . . . . 1 . . . . 2 Targets Rammed 7 | . 1 2 . 1 . . . . . . 1 . . . . 2 Kicked . | . . . . . . . . . . . . . . . . . Crushed . | . . . . . . . . . . . . . . . . . Highest Temperature 393 | 6 5 . 19 292 194 198 4 202 . 30 105 354 292 . 113 393 Average Temperature 88 | 6 3 . 10 59 58 55 3 69 . 17 33 122 84 . 34 119 Received Heat Transfer 1771 | . 78 240 97 258 135 99 . 27 . . 294 45 . . 84 414 Effects 16 | . . . . . . . . . . . . 2 1 . . 13 Shutdowns 3 | . . . . . . . . . . . . . . . . 3 Energy Bleed 4 | . . . . . . . . . . . . 1 1 . . 2 Interference 7 | . . . . . . . . . . . . . . . . 7 Matter Decay 1 | . . . . . . . . . . . . 1 . . . . Short Circuit 1 | . . . . . . . . . . . . . . . . 1 Siege Activations 8 | . . . . . . . . . . . . 1 . . 1 6 Total Turns 226 | . . . . . . . . . . . . 5 . . 20 201 Longest Duration 87 | . . . . . . . . . . . . 5 . . 20 87 Martial Activations . | . . . . . . . . . . . . . . . . . Shielding Activations . | . . . . . . . . . . . . . . . . . Robots Disrupted . | . . . . . . . . . . . . . . . . . Combat Hostiles . | . . . . . . . . . . . . . . . . . Robots Corrupted 5 | . . . . . 1 . . . . . 1 . . 2 . 1 Combat Hostiles 3 | . . . . . 1 . . . . . . . . 1 . 1 Parts Fried 6 | . . . . . 2 . . . . . 4 . . . . . Impact Corruptions 15 | . . . . . 2 . . . . . 1 . . 12 . . Robots Melted 7 | . . . . . . . . . . . 2 . 2 . . 3 Combat Hostiles 4 | . . . . . . . . . . . 1 . 2 . . 1 Parts Melted 27 | . . . . 3 . . . . . . 1 3 11 . . 9 Heat Transferred 11894 | . . . . 962 . . . 481 . 1050 2943 1665 1051 . 696 3046 Parts Sabotaged . | . . . . . . . . . . . . . . . . . Parts Stolen 2 | . . . . . 2 . . . . . . . . . . . Parts Stripped . | . . . . . . . . . . . . . . . . . Power Chain Reactions 1 | . . . . 1 . . . . . . . . . . . . Alert | -11 -10 -10 -8 -6 -6 -6 -6 -5 -5 -5 -5 -5 -5 -5 -4 -4 ------- Run | Yrd Mat Sub Scr Fac Low Low Zio Pro Fac Was Fac Upp Upp Zhi Pro Fac Maximum Alert Level 5 | . . . . 1 . . . . 1 . 5 . . . . 3 Low Security (%) 56 | 100 100 . . 82 . . . . 99 100 9 . . . . 37 Level 1 12 | . . . . 17 . . . . . . 13 . . . . 18 Level 2 7 | . . . . . . . . . . . 23 . . . . 7 Level 3 16 | . . . . . . . . . . . 20 . . . . 36 Level 4 3 | . . . . . . . . . . . 16 . . . . . Level 5 . | . . . . . . . . . . . 3 . . . . . High Security 2 | . . . . . . . . . . . 12 . . . . . Max Security . | . . . . . . . . . . . . . . . . . Peak Influence 2107 | 10 45 . . 285 . . . . 200 60 2107 . . . . 992 Initial 29 | . . . . . . . . . . 29 . . . . . . Average 351 | 1 17 . . 97 . . . . 105 7 906 . . . . 392 Influence Increases 7497 | 30 127 140 . 857 215 143 . 362 204 104 3051 160 355 10 100 1639 Destroy 0b10 Robot/C 3540 | . 80 80 . 480 200 120 . 280 . . 980 160 300 . 80 780 Destroy 0b10 Robot/NC 325 | 30 30 . . 55 5 . . . . . 80 . 5 10 . 110 Destroy Leader 618 | . 6 . . 118 10 20 . 40 . . 170 . 50 . 20 184 Allied During Kill 1067 | . . . . . . 3 . 27 . . 954 . . . . 83 Successful Hack 79 | . 11 . . . . . . . . . 27 . . . . 41 Disable Machine 600 | . . . . 75 . . . . . . 420 . . . . 105 Anti-Garrison Action 200 | . . . . . . . . . 200 . . . . . . . Destroy Structure 888 | . . . . 54 . . . . 4 104 420 . . . . 306 Lose Combat Pursuer 180 | . . 60 . 75 . . . 15 . . . . . . . 30 Influence Decreases 6587 | 30 127 51 89 618 454 143 . 362 120 188 950 1258 550 818 100 729 Entered New Map 2011 | . . . 89 . 89 . . . . 55 . 778 192 808 . . Time Decay 3401 | 30 127 21 . 508 335 143 . 312 120 113 450 440 318 10 100 374 Lost Part 485 | . . 30 . 110 30 . . 10 . . 10 40 40 . . 215 Lost Ally 390 | . . . . . . . . 40 . 20 190 . . . . 140 Purge Threat 300 | . . . . . . . . . . . 300 . . . . . Squads Dispatched 47 | . 1 . . 7 . . . . 1 . 21 . . . . 17 Investigation 19 | . . . . 4 . . . . 1 . 9 . . . . 5 Extermination 10 | . . . . 3 . . . . . . 3 . . . . 4 Reinforcement 6 | . 1 . . . . . . . . . . . . . . 5 Assault 9 | . . . . . . . . . . . 6 . . . . 3 Garrison 3 | . . . . . . . . . . . 3 . . . . . Intercept . | . . . . . . . . . . . . . . . . . Searches Triggered . | . . . . . . . . . . . . . . . . . Construction Impeded . | . . . . . . . . . . . . . . . . . Haulers Reinforced 2 | . . . . . . . . . . . . . . . . 2 Active Scanning Responses . | . . . . . . . . . . . . . . . . . Cargo Convoy Interrupts 1 | . . . . . . . . . . . . . . . . 1 Stealth | -11 -10 -10 -8 -6 -6 -6 -6 -5 -5 -5 -5 -5 -5 -5 -4 -4 --------- Run | Yrd Mat Sub Scr Fac Low Low Zio Pro Fac Was Fac Upp Upp Zhi Pro Fac Distress Signals 3 | . . . . 1 . . . . . . 1 . . . . 1 Communications Jammed 97 | . . . . . . . . . . . 20 . . . . 77 Distress Signals 68 | . . . . . . . . . . . 20 . . . . 48 Times Spotted 224 | . 7 15 3 32 12 6 . 16 . 4 42 8 14 . 4 61 Peak Tracking Total 9 | . 2 6 3 4 7 3 . 7 . 2 6 3 5 . 3 9 Tactical Retreats 9 | . . 2 . 4 . . . 1 . . . . . . . 2 Traps | -11 -10 -10 -8 -6 -6 -6 -6 -5 -5 -5 -5 -5 -5 -5 -4 -4 ------- Run | Yrd Mat Sub Scr Fac Low Low Zio Pro Fac Was Fac Upp Upp Zhi Pro Fac Traps Triggered 7 | . . 1 . 4 . . . . 1 . . . . . . 1 Indirectly . | . . . . . . . . . . . . . . . . . Trap Hack Attempts . | . . . . . . . . . . . . . . . . . Triggered . | . . . . . . . . . . . . . . . . . Disarmed . | . . . . . . . . . . . . . . . . . Reprogrammed . | . . . . . . . . . . . . . . . . . Reused . | . . . . . . . . . . . . . . . . . Traps Extracted . | . . . . . . . . . . . . . . . . . Installed . | . . . . . . . . . . . . . . . . . Triggered . | . . . . . . . . . . . . . . . . . Machines | -11 -10 -10 -8 -6 -6 -6 -6 -5 -5 -5 -5 -5 -5 -5 -4 -4 ---------- Run | Yrd Mat Sub Scr Fac Low Low Zio Pro Fac Was Fac Upp Upp Zhi Pro Fac Machines Disabled 42 | . . . . 5 . . . . . . 29 . . 1 . 7 Max in Single Turn 1 | . . . . 1 . . . . . . 1 . . 1 . 1 Garrison Access 1 | . . . . . . . . . 1 . . . . . . . Machines Repaired 4 | . . . . . . . . . . . 4 . . . . . Machines Dismantled . | . . . . . . . . . . . . . . . . . Machines Sabotaged . | . . . . . . . . . . . . . . . . . Overloaded Fab Kills . | . . . . . . . . . . . . . . . . . Hacking | -11 -10 -10 -8 -6 -6 -6 -6 -5 -5 -5 -5 -5 -5 -5 -4 -4 --------- Run | Yrd Mat Sub Scr Fac Low Low Zio Pro Fac Was Fac Upp Upp Zhi Pro Fac Machines Accessed 39 | . 2 1 3 9 . . . . 1 . 10 . 1 4 . 8 Terminals 11 | . 2 . . 3 . . . . . . 2 . . . . 4 Fabricators 4 | . . . . 1 . . . . . . 2 . . . . 1 Repair Stations 2 | . . . . 2 . . . . . . . . . . . . Recycling Units 10 | . . . . 2 . . . . . . 5 . . . . 3 Scanalyzers 2 | . . . . 1 . . . . . . 1 . . . . . Garrison Access 1 | . . . . . . . . . 1 . . . . . . . Total Hacks 115 | . 7 4 26 14 . . . . 1 . 25 . 1 17 . 20 Successful 82 | . 3 4 26 5 . . . . 1 . 13 . 1 17 . 12 Failed 33 | . 4 . . 9 . . . . . . 12 . . . . 8 Catastrophic 9 | . 1 . . 4 . . . . . . 3 . . . . 1 Database Lockouts . | . . . . . . . . . . . . . . . . . Manual 45 | . 5 . . 8 . . . . 1 . 19 . . . . 12 Terminals 28 | . 7 . . 4 . . . . . . 7 . . . . 10 Fabricators 12 | . . . . 2 . . . . . . 5 . . . . 5 Repair Stations 3 | . . . . 3 . . . . . . . . . . . . Recycling Units 20 | . . . . 4 . . . . . . 11 . . . . 5 Scanalyzers 3 | . . . . 1 . . . . . . 2 . . . . . Garrison Access 1 | . . . . . . . . . 1 . . . . . . . Terminal Hacks 59 | . 3 4 26 . . . . . . . 4 . 1 17 . 4 Record 35 | . . 4 26 . . . . . . . . . . 5 . . Part Schematic 4 | . . . . . . . . . . . . . . 4 . . Robot Analysis 5 | . 1 . . . . . . . . . . . . 4 . . Prototype ID Bank 6 | . 1 . . . . . . . . . . . . 4 . 1 Open Door 1 | . . . . . . . . . . . . . 1 . . . Branch Access Points 2 | . . . . . . . . . . . 1 . . . . 1 Alert Level 1 | . . . . . . . . . . . 1 . . . . . Unreport Threat 2 | . . . . . . . . . . . 2 . . . . . Locate Traps 2 | . 1 . . . . . . . . . . . . . . 1 Hauler Manifests 1 | . . . . . . . . . . . . . . . . 1 Fabricator Hacks 3 | . . . . . . . . . . . 1 . . . . 2 Load Schematic 2 | . . . . . . . . . . . 1 . . . . 1 Build 1 | . . . . . . . . . . . . . . . . 1 Repair Station Hacks 2 | . . . . 2 . . . . . . . . . . . . Scan Component 1 | . . . . 1 . . . . . . . . . . . . Repair 1 | . . . . 1 . . . . . . . . . . . . Recycling Unit Hacks . | . . . . . . . . . . . . . . . . . Scanalyzer 2 | . . . . . . . . . . . 2 . . . . . Retrieve Study 2 | . . . . . . . . . . . 2 . . . . . Garrison Access Hacks . | . . . . . . . . . . . . . . . . . Unauthorized Hacks 16 | . . . . 3 . . . . 1 . 6 . . . . 6 Terminals 1 | . . . . 1 . . . . . . . . . . . . Search 1 | . . . . 1 . . . . . . . . . . . . Fabricators 3 | . . . . . . . . . . . 2 . . . . 1 Prioritize 1 | . . . . . . . . . . . . . . . . 1 Fabnet 1 | . . . . . . . . . . . 1 . . . . . Recompile 1 | . . . . . . . . . . . 1 . . . . . Repair Stations 1 | . . . . 1 . . . . . . . . . . . . Patch 1 | . . . . 1 . . . . . . . . . . . . Recycling Units 10 | . . . . 1 . . . . . . 4 . . . . 5 Reject 1 | . . . . . . . . . . . . . . . . 1 Mask 1 | . . . . . . . . . . . . . . . . 1 Fedlink 5 | . . . . 1 . . . . . . 2 . . . . 2 Scrapoids 3 | . . . . . . . . . . . 2 . . . . 1 Scanalyzers . | . . . . . . . . . . . . . . . . . Garrison Access 1 | . . . . . . . . . 1 . . . . . . . Jam 1 | . . . . . . . . . 1 . . . . . . . Data Cores Recovered 3 | . . . . . . . . . . . 2 . . . . 1 Used 1 | . . . . . . . . . . . 1 . . . . . Hacking Detections 19 | . 2 . . 5 . . . . . . 7 . . . . 5 Full Trace Events 6 | . . . . 1 . . . . . . 3 . . . . 2 Feedback Events 1 | . . . . . . . . . . . . . . . . 1 Corruption 1 | . . . . . . . . . . . . . . . . 1 Feedback Blocked . | . . . . . . . . . . . . . . . . . Robot Schematics Acquired 4 | . . . . . . . 4 . . . . . . . . . Robots Built 2 | . . . . . . . . . . . . . . . . 2 Authchips 1 | . . . . . . . . . . . . . . . . 1 Time 187 | . . . . . . . . . . . . . . . . 187 Total Robot Build Rating 14 | . . . . . . . . . . . . . . . . 14 Part Schematics Acquired 19 | . . . . . . . 15 . . . . . . 4 . . Parts Built . | . . . . . . . . . . . . . . . . . Authchips . | . . . . . . . . . . . . . . . . . Time . | . . . . . . . . . . . . . . . . . Total Part Build Rating . | . . . . . . . . . . . . . . . . . Part Studies Acquired 1 | . . . . . . . . . . . 1 . . . . . Parts Repaired 1 | . . . . 1 . . . . . . . . . . . . Time 38 | . . . . 38 . . . . . . . . . . . . Parts Recycled . | . . . . . . . . . . . . . . . . . Recycled Matter . | . . . . . . . . . . . . . . . . . Retrieved Matter . | . . . . . . . . . . . . . . . . . Retrieved Components . | . . . . . . . . . . . . . . . . . Parts Scanalyzed . | . . . . . . . . . . . . . . . . . Part Schematics Acquired . | . . . . . . . . . . . . . . . . . Parts Damaged . | . . . . . . . . . . . . . . . . . Bothacking | -11 -10 -10 -8 -6 -6 -6 -6 -5 -5 -5 -5 -5 -5 -5 -4 -4 ------------ Run | Yrd Mat Sub Scr Fac Low Low Zio Pro Fac Was Fac Upp Upp Zhi Pro Fac Used RIF Installer . | . . . . . . . . . . . . . . . . . Robots Hacked . | . . . . . . . . . . . . . . . . . Non-combat . | . . . . . . . . . . . . . . . . . Combat . | . . . . . . . . . . . . . . . . . Robot Hacks Applied . | . . . . . . . . . . . . . . . . . Relay Couplers Released . | . . . . . . . . . . . . . . . . . Fabnet Peak Effective % . | . . . . . . . . . . . . . . . . . Robots Rewired 2 | . . . . . 2 . . . . . . . . . . . Allies Hacked 1 | . . . . . . . . . . . 1 . . . . . Hacks Repelled . | . . . . . . . . . . . . . . . . . Allies | -11 -10 -10 -8 -6 -6 -6 -6 -5 -5 -5 -5 -5 -5 -5 -4 -4 -------- Run | Yrd Mat Sub Scr Fac Low Low Zio Pro Fac Was Fac Upp Upp Zhi Pro Fac Total Allies 35 | . . . . . 2 . 2 . . 19 5 . . . . 7 Largest Group 19 | . . . . . 2 2 2 2 . 19 12 . . . . 5 Highest-Rated Group 702 | . . . . . 52 52 62 62 . 702 489 . . . . 235 Highest-Rated Ally 68 | . . . . . 32 32 31 31 . 50 50 . . . . 68 Total Orders 5 | . . . . . . . . . . . 1 . . . . 4 STAY 1 | . . . . . . . . . . . 1 . . . . . ROAM 1 | . . . . . . . . . . . . . . . . 1 RETURN 3 | . . . . . . . . . . . . . . . . 3 Ally Attacks 427 | . . . . . 1 7 . 18 . 72 248 . . . . 81 Total Damage 14460 | . . . . . 12 252 . 191 . 3773 8584 . . . . 1648 Kills 82 | . . . . . . 2 . 3 . 10 57 . . . . 10 Allies Corrupted 1 | . . . . . . . . . . . 1 . . . . . Allies Melted 1 | . . . 1 . . . . . . . . . . . . . Intel | -11 -10 -10 -8 -6 -6 -6 -6 -5 -5 -5 -5 -5 -5 -5 -4 -4 ------- Run | Yrd Mat Sub Scr Fac Low Low Zio Pro Fac Was Fac Upp Upp Zhi Pro Fac Active Infowar (turns) 8683 | 116 310 624 . 208 . . . 4 301 787 1477 1090 710 331 547 2178 IFF 197 | . . . . . . . . . . . . . . . . 197 Terrain 1082 | . . . . . . . . . . . . . . . . 1082 Seismic 1050 | 116 310 624 . . . . . . . . . . . . . . T.N.C. 37 | . . . . 37 . . . . . . . . . . . . Machine Analysis 171 | . . . . 171 . . . . . . . . . . . . Jamming 7396 | . . . . . . . . 4 301 787 1477 1090 710 331 547 2149 Robot Analysis Total 5 | . 1 . . . . . . . . . . . . 4 . . Derelict Logs Recovered 6 | . . 1 2 . . 1 . 1 . . . . 1 . . . Drone Launches 3 | . . . . . . . . . . . . . . . . 3 Drone Recoveries 3 | . . . . . . . . . . . . . . . . 3 Exploration | -11 -10 -10 -8 -6 -6 -6 -6 -5 -5 -5 -5 -5 -5 -5 -4 -4 ------------- Run | Yrd Mat Sub Scr Fac Low Low Zio Pro Fac Was Fac Upp Upp Zhi Pro Fac Turns Passed 21262 | 175 310 3137 4271 1593 937 663 1671 958 301 787 1477 1090 710 331 563 2288 Spaces Moved 11752 | 95 155 1715 1720 1023 749 562 1488 431 239 416 741 585 360 180 252 1041 Core 15 | 15 . . . . . . . . . . . . . . . . Treads 5992 | . 60 1715 1710 . . . . . . . 697 585 306 180 252 487 Legs 175 | 80 95 . . . . . . . . . . . . . . . Wheels 5570 | . . . 10 1023 749 562 1488 431 239 416 44 . 54 . . 554 Hover . | . . . . . . . . . . . . . . . . . Flight . | . . . . . . . . . . . . . . . . . Fastest Speed 50 | 50 120 160 100 100 98 98 98 98 120 120 160 160 160 160 160 99 Average Speed 150 | 113 135 160 239 109 101 98 98 104 120 167 161 162 171 160 197 150 Slowest Speed 240 | 150 160 240 240 110 120 98 109 120 120 200 220 163 225 160 225 225 Overloaded Moves . | . . . . . . . . . . . . . . . . . Propulsion Burnouts . | . . . . . . . . . . . . . . . . . Robots Hopped . | . . . . . . . . . . . . . . . . . Potential Cave-ins . | . . . . . . . . . . . . . . . . . Cave-ins Triggered . | . . . . . . . . . . . . . . . . . Teleports 1 | . . . . . . . . . . . . . . . . 1 Exploration Rate (%) 53 | 5 40 77 93 18 87 69 90 58 6 93 23 69 53 60 48 21 Regions Visited 16 Branch Regions 10 Pre-discovered Areas 12 | . . 1 2 . . . 5 . . . 1 . . 3 . . Known Exits Taken 6 | . . . . 1 1 1 . 1 . . 1 . . . 1 . Unknown Exits Taken 8 | 1 1 1 1 . . . 1 . . . . 1 1 1 . . Scrap Searched 22 | . . . 8 . 2 1 4 3 . . . 1 1 . 2 . Spaces Dug 99 | . . . . 2 . 5 . 5 2 2 26 1 . . . 56 Terrain Destroyed 468 | . . . . 53 34 33 . 19 2 4 59 16 55 . 35 158 Melee 1 | . . . . . . . . . . . . . . . . 1 Projectile 181 | . . . . 15 . 8 . 19 2 4 18 16 8 . 1 90 AOE 284 | . . . . 38 34 25 . . . . 41 . 47 . 34 65 Terrain Rammed . | . . . . . . . . . . . . . . . . . Walls Destroyed . | . . . . . . . . . . . . . . . . . Machines Disabled . | . . . . . . . . . . . . . . . . . Actions | -11 -10 -10 -8 -6 -6 -6 -6 -5 -5 -5 -5 -5 -5 -5 -4 -4 --------- Run | Yrd Mat Sub Scr Fac Low Low Zio Pro Fac Was Fac Upp Upp Zhi Pro Fac Total 14206 | 125 197 1901 1877 1317 881 644 1696 883 255 476 910 675 410 211 293 1455 Wait 1207 | . 1 45 113 89 47 55 167 400 . 13 72 47 5 . 15 138 Move 11737 | 94 154 1714 1719 1022 748 561 1487 430 239 415 740 584 359 179 251 1041 Hop . | . . . . . . . . . . . . . . . . . Pick Up 132 | 7 2 6 25 19 1 3 8 7 4 5 4 7 7 4 1 22 Fast Attach 95 | 7 2 5 3 14 1 1 9 4 1 6 7 1 3 8 6 17 Attach 67 | . . 3 2 13 3 1 2 . 2 6 2 5 4 1 2 21 Detach 13 | . . 1 . 2 1 . . . . 4 . . . . . 5 Swap 97 | . 2 16 5 13 5 2 3 1 2 4 17 1 4 . 2 20 Drop 144 | . 5 12 10 22 1 3 19 8 5 5 8 3 5 11 4 23 Fire 616 | 17 30 84 . 117 19 18 1 32 2 18 51 27 23 . 12 165 Melee 18 | . . . . 3 6 . . . . . . . . 8 . 1 Ram 1 | . . . . 1 . . . . . . . . . . . . Kick . | . . . . . . . . . . . . . . . . . Crush 6 | . 1 2 . . . . . . . . 1 . . . . 2 Escape Stasis . | . . . . . . . . . . . . . . . . . Rewire 49 | . . . . . 49 . . . . . . . . . . . Trap . | . . . . . . . . . . . . . . . . . Miscellaneous 24 | . . 13 . 2 . . . 1 . . 8 . . . . . Route ------- -11/Scrapyard -10/Materials (discovered 3 exits: [*Mat] / [*Min] / *Sub) -10/Subcaves (discovered 2 exits: [*Mat] / *Scr) -8/Scraptown (discovered 2 exits: *Fac x2) -6/Factory (discovered 2 exits: *Low x2) -6/Lower Caves (discovered 2 exits: *Low / *Zio) -6/Lower Caves -6/Zion -5/Proximity Caves -5/Factory (discovered 2 exits: Fac / *Upp) -5/Waste -5/Factory (discovered 2 exits: *Upp x2) -5/Upper Caves -5/Upper Caves (discovered 2 exits: *Fac / *Zhi) -5/Zhirov -4/Proximity Caves -4/Factory (discovered 5 exits: Res / *Upp x2 / *Ext x2) History --------- Turn | Location | Event 3 | -11/Scrapyard | Discovered new exit (range 16) 176 | -11/Scrapyard | Entered Materials 177 | -10/Materials | Met a group of wandering Federalists 206 | -10/Materials | Discovered new exit (range 11) 290 | -10/Materials | Discovered new exit (range 3) 301 | -10/Materials | Discovered new exit (range 15) 302 | -10/Materials | Build established: Mutant 486 | -10/Materials | Entered Subcaves 487 | -10/Subcaves | Continued accompanying wandering Federalists (4) 487 | -10/Subcaves | Approached by a straggling Scientist 1410 | -10/Subcaves | Build established: Scavenger-Mutant 1545 | -10/Subcaves | Shifting Twisted Machinery released Shrapnel Trap 1546 | -10/Subcaves | Shifting Twisted Machinery released Sub. Optics 2504 | -10/Subcaves | Discovered new exit (range 13) 2528 | -10/Subcaves | Shifting Twisted Machinery released Sub. Optics 2679 | -10/Subcaves | Shifting Twisted Machinery released Sub. Optics 2721 | -10/Subcaves | Shifting Twisted Machinery released Sub. Optics 2917 | -10/Subcaves | Learned Materials stockpile data 2947 | -10/Subcaves | Visited Clippyterm 2952 | -10/Subcaves | Learned location of Extension (-4) 2952 | -10/Subcaves | Learned Factory stockpile data 3297 | -10/Subcaves | Ambushed by angry Subdweller bent on revenge 3541 | -10/Subcaves | Build established: Mutant 3623 | -10/Subcaves | Entered Scraptown 4118 | -8/Scraptown | Visited Assassins FH 4199 | -8/Scraptown | Visited IN-MT5's Study 4701 | -8/Scraptown | Heard Great Nut preacher, LISTEN AND RECITE! 4975 | -8/Scraptown | Scanned Subdweller tech in exchange for log data 4984 | -8/Scraptown | Learned location of Testing (-2) 5015 | -8/Scraptown | Discovered new exit (range 13) 5200 | -8/Scraptown | Visited Red Mages 5251 | -8/Scraptown | Visited Awakened 5340 | -8/Scraptown | Visited Comm Corps 5460 | -8/Scraptown | Visited The Evicted 5617 | -8/Scraptown | Visited Cyclists 5684 | -8/Scraptown | Visited UFD Registry 5684 | -8/Scraptown | Registered with UFD as "Roughbucket" 5730 | -8/Scraptown | Entered Cyclist Reading Room 5874 | -8/Scraptown | Visited Botcube Research 5996 | -8/Scraptown | Visited Cartography Club 6434 | -8/Scraptown | Visited LU-1G1's Boring Crew 6559 | -8/Scraptown | Visited DA-N13 Charitable Foundation 6569 | -8/Scraptown | Found DCF Scrap (30 items) 6722 | -8/Scraptown | Visited Scrap Suit Storage 6731 | -8/Scraptown | Found Scrap Suit 6768 | -8/Scraptown | Visited Infowarlord's Domain 6786 | -8/Scraptown | Found Exp. Terrain Scanner 7139 | -8/Scraptown | Visited Science Testing Area 7216 | -8/Scraptown | Visited Research Penetration Think Tank 7329 | -8/Scraptown | Visited Derelict Rescue Squad 7345 | -8/Scraptown | Found DRS Beacon 7377 | -8/Scraptown | Visited Chapter 10 7628 | -8/Scraptown | Met Optimus 7628 | -8/Scraptown | Accepted into 0bPrime 7833 | -8/Scraptown | Civil war broke out across Scraptown 7887 | -8/Scraptown | Discovered new exit (range 5) 7894 | -8/Scraptown | Entered Factory 7894 | -6/Factory | Evolved 8 slots: Power x1, Propulsion x2, Utility x4, Weapon x1 7908 | -6/Factory | Lost 3 allies 8143 | -6/Factory | Lost 3 parts (1n2w) 8185 | -6/Factory | Build established: Derelict-Scrapper 8244 | -6/Factory | Discovered new exit (range 15) 8659 | -6/Factory | Repaired Imp. Utility Shielding 8683 | -6/Factory | Build established: Scavenger-Scrapper 8800 | -6/Factory | Loaded intel: 8 recycling unit locations 8910 | -6/Factory | Discovered new exit (range 10) 8926 | -6/Factory | Identified exit to Lower Caves 9341 | -6/Factory | Lost 3 parts (1n1u1w) 9487 | -6/Factory | Entered Lower Caves 9601 | -6/Lower Caves | Build established: Scavenger-Tank 9649 | -6/Lower Caves | Attracted the attention of an 0b10 outpost 9708 | -6/Lower Caves | Destroyed 7 combat bots 9716 | -6/Lower Caves | Lost 3 parts (1n1u1w) 9771 | -6/Lower Caves | A Derelict revealed a hidden shortcut to a safe place 9813 | -6/Lower Caves | Identified exit to Zion 10204 | -6/Lower Caves | Encountered a Warlord checkpoint 10293 | -6/Lower Caves | Build established: Tank 10306 | -6/Lower Caves | Discovered new exit (range 15) 10323 | -6/Lower Caves | Identified exit to Lower Caves 10424 | -6/Lower Caves | Entered another Lower Caves area 10424 | -6/Lower Caves | Accompanied by 2 allies 10470 | -6/Lower Caves | P-60 Hacker assimilated allied Gladiator 5a 10565 | -6/Lower Caves | Learned location of 1 exit from Factory 10572 | -6/Lower Caves | Attracted the attention of an 0b10 checkpoint 11037 | -6/Lower Caves | Encountered a Warlord checkpoint 11065 | -6/Lower Caves | Discovered exit to Zion (range 11) 11087 | -6/Lower Caves | Entered Zion 11131 | -6/Zion | System corruption cleaned by Quarantine Array 11217 | -6/Zion | Visited the Megawrench Repair Shop 11270 | -6/Zion | Discovered new exit (range 15) 11501 | -6/Zion | Learned location of Quarantine (-3) 11784 | -6/Zion | Gained Derelict followers 11810 | -6/Zion | Found Prototype Device 11810 | -6/Zion | Identified Bomb Factory No. 2 11858 | -6/Zion | Learned location of Armory (-3) 11987 | -6/Zion | Learned location of Warlord (-4) 12045 | -6/Zion | Turned away by Imprinter 12107 | -6/Zion | Build established: Scavenger-Gunner 12369 | -6/Zion | Given the Hacking Drone Bay 12371 | -6/Zion | Found Prototype Device 12417 | -6/Zion | Identified Hacking Drone Bay 12520 | -6/Zion | Megawrench repaired 12 parts 12758 | -6/Zion | Entered Proximity Caves 12758 | -5/Proximity Caves | Accompanied by 2 allies 12825 | -5/Proximity Caves | Build established: Derelict-Tank 12889 | -5/Proximity Caves | Attracted the attention of an 0b10 checkpoint 12941 | -5/Proximity Caves | Identified exit to Factory 12945 | -5/Proximity Caves | Activated DRS Beacon 13181 | -5/Proximity Caves | Received a Behemoth hack from an annoying Tinkerer 13288 | -5/Proximity Caves | Build established: Derelict-Gunner 13572 | -5/Proximity Caves | Spotted B-75 Beast 13584 | -5/Proximity Caves | Destroyed B-75 Beast 13716 | -5/Proximity Caves | Entered Factory 13716 | -5/Factory | Evolved 2 slots: Utility x2 13717 | -5/Factory | Identified exit to Factory 13877 | -5/Factory | Discovered new exit (range 15) 14017 | -5/Factory | Sucked down chute 14017 | -5/Factory | Entered Waste 14043 | -5/Waste | Spotted C-40 Crusher 14106 | -5/Waste | Spotted C-40 Crusher 14117 | -5/Waste | Crushed by Compactor (1 part destroyed, 1 dropped) 14120 | -5/Waste | Crushed by Compactor (1 part destroyed, 2 dropped) 14123 | -5/Waste | Crushed by Compactor (1 part destroyed, 1 dropped) 14125 | -5/Waste | Destroyed C-40 Crusher 14127 | -5/Waste | Crushed by Compactor (1 part destroyed) 14130 | -5/Waste | Crushed by Compactor (0 parts destroyed, 1 dropped) 14144 | -5/Waste | Spotted C-40 Crusher 14155 | -5/Waste | Spotted C-40 Crusher 14156 | -5/Waste | Spotted C-40 Crusher 14158 | -5/Waste | Lost 5 parts (1p2n1u1w) 14171 | -5/Waste | Warlord forces began an assault 14173 | -5/Waste | Allies destroyed C-40 Crusher 14179 | -5/Waste | Allies destroyed C-40 Crusher 14184 | -5/Waste | Spotted C-40 Crusher 14191 | -5/Waste | Allies destroyed C-40 Crusher 14366 | -5/Waste | Lost 4 allies 14497 | -5/Waste | Build established: Scavenger-Mutant 14769 | -5/Waste | Discovered new exit (range 13) 14804 | -5/Waste | Entered Factory 14804 | -5/Factory | Accompanied by 12 allies 14823 | -5/Factory | Build established: Scavenger-Tank 15132 | -5/Factory | P-70 Sage assimilated allied XC-OSJ(g) 15301 | -5/Factory | Loaded intel: 8 recycling unit locations 15301 | -5/Factory | Learned location of Protoforge (-3) 15496 | -5/Factory | Identified exit to Upper Caves 15630 | -5/Factory | Lost 3 allies 15704 | -5/Factory | First assault squad dispatched 15779 | -5/Factory | Scrapoids reinforcements arrived? 15789 | -5/Factory | Garrison activated, responded to threat 15793 | -5/Factory | Attached CPS modules to 05F05-D. 15795 | -5/Factory | Attached CPS modules to 05F04-D. 16060 | -5/Factory | Found Scrap Suit 16097 | -5/Factory | Spotted B-75 Beast 16101 | -5/Factory | High security lockdown imminent 16127 | -5/Factory | Destroyed B-75 Beast 16181 | -5/Factory | High security lockdown engaged 16194 | -5/Factory | Lost 8 allies 16281 | -5/Factory | Entered Upper Caves 16319 | -5/Upper Caves | Ambushed by research squad 16362 | -5/Upper Caves | Lost 3 parts (1p1n1u) 16704 | -5/Upper Caves | Attracted the attention of an 0b10 checkpoint 16995 | -5/Upper Caves | Attracted the attention of an 0b10 outpost 17106 | -5/Upper Caves | Discovered new exit (range 8) 17371 | -5/Upper Caves | Entered another Upper Caves area 17392 | -5/Upper Caves | Discovered exit to Factory (range 7) 17604 | -5/Upper Caves | Learned 4 Factory zone layouts 18038 | -5/Upper Caves | Discovered new exit (range 9) 18081 | -5/Upper Caves | Entered Zhirov 18083 | -5/Zhirov | Discovered new exit (range 3) 18112 | -5/Zhirov | Met Zhirov 18141 | -5/Zhirov | Learned location of Command (-1) 18157 | -5/Zhirov | Zhirov requested help retrieving the SGEMP Prototype 18181 | -5/Zhirov | Found Alien Artifact 18181 | -5/Zhirov | Identified Integrated Dissipator 18181 | -5/Zhirov | Installed Integrated Dissipator, increased core heat dissipation (+20) 18204 | -5/Zhirov | Found Alien Artifact 18383 | -5/Zhirov | Build established: Scavenger-Mutant 18412 | -5/Zhirov | Entered Proximity Caves 18574 | -4/Proximity Caves | Spotted B-86 Titan 18608 | -4/Proximity Caves | Destroyed B-86 Titan 18898 | -4/Proximity Caves | Build established: Derelict-Tank 18935 | -4/Proximity Caves | Discovered exit to Factory (range 9) 18975 | -4/Proximity Caves | Entered Factory 18975 | -4/Factory | Evolved 2 slots: Utility x1, Weapon x1 18976 | -4/Factory | Identified exit to Research 19154 | -4/Factory | Discovered new exit (range 16) 19344 | -4/Factory | Identified exit to Upper Caves 19344 | -4/Factory | Identified exit to Extension 19834 | -4/Factory | Destroyed 7 combat bots 19977 | -4/Factory | Identified Transdimensional Reconstructor 19977 | -4/Factory | Warped through subspace 19978 | -4/Factory | Cargo convoy interrupted 20142 | -4/Factory | Build established: Tank 20165 | -4/Factory | Loaded intel: 8 recycling unit locations 20221 | -4/Factory | Scrapoid reinforcements arrived 20306 | -4/Factory | Lost 3 allies 20331 | -4/Factory | Found Unknown Device 20337 | -4/Factory | Identified Scrap Suit 20340 | -4/Factory | Attached CPS modules to 04F10-D. 20400 | -4/Factory | Core integrity fell below 50% 20431 | -4/Factory | Destroyed 8 combat bots 20463 | -4/Factory | Lost 5 parts (2u3w) 20500 | -4/Factory | Build established: Scavenger-Tank 20725 | -4/Factory | First assault squad dispatched 20764 | -4/Factory | Fabricated X-77 Beamer? 21240 | -4/Factory | Core integrity fell below 20% 21257 | -4/Factory | System corruption reached 10% 21263 | -4/Factory | Destroyed by P-70 Sage with High-powered Shock Rifle Last Messages --------------- 21223_ Acquired Hvy. Gatling Laser. 21224_ Imp. Medium Armor Plating destroyed. 21225_ The unstable cave ceiling collapses. 21225_ ALERT: Unidentified disturbance in Zone 9A, multiple assault carriers dispatched. 21225_ U-05 Engineer lays Concrete. 21226_ Ovr. Huge Scrapsphere suddenly begins malfunctioning. 21226_ U-05 Engineer lays Concrete. 21232_ Fusion Reactor destroyed. 21235_ Adv. Plasma Cannon destroyed. 21238_ L-61 Swordsman destroyed. 21241_ L-61 Swordsman suffers critical hit (Burn). 21241_ Hvy. Gatling Laser destroyed. 21243_ Imp. Force Field destroyed. 21245_ G-67 Veteran suffers critical hit (Burn). 21246_ System corrupted: Heat flow error (+187). 21246_ K-01 Serf collects debris. 21249_ Ovr. Huge Scrapsphere destroyed. 21250_ K-01 Serf collects debris. 21255_ U-05 Engineer lays Concrete. Map ----- +----------------------------------------------------+ | #### ### ""T"" # # ?"? | | #### ### """ # # """ | | #### ##################### # """ | | ###### ####### ############# # | | ###### ####### ###### # ####+ | | ###### ####### ###### # | | ###### ####### # """ # ? | | ###### ############## """ + | | ###### ############## """ # | | ###### ############## # | | ###### ########T ######+#### | | ##### | | #####+########### | | #### # | | ####! """"""""" + | | #### ## ## | | #### """"""""" ## ## | | #### ## ## ? | | #########+######## ## | | ######### ######## ## ? | | ######### ##### ########### | | # # ##### #######?### | | # """ # ##### """ #?#########+# | | # """ # ##### """ #### | | # """ # ##### """ #### | | # # @ #### | | # """ + l + | | # """ # #########+#### | | # """ ### ####p######### =[ | | # ### #### ## | | # ### ##?# ## | | # ### #### #" | | ########### #### g"" | | ######?#### #### ## | | ##??####### #### ## | | #########?# ### ## = | | ###########p ## | | ### ## ! | | #?# """ # #### % | | ### """ ### | | ### """ # ##########+### | | ### | | ### """ ^ | | #?# """ # * ^ | | #?# """ % [ | | ?## % ! [ | | ### ####+#### | | #?# # #? | | ?## ### """#? | | ########## # ####??# """# ? | +----------------------------------------------------+ Best States ------------- Heat Dissipation 120 Energy Generation 39 Energy Capacity 900 Matter Stores 300 Matter Capacity 300 Sight Range 16 Terrain Scan Range 30 Terrain Scan Density 210 Jamming Range 14 EM Shielding 2 Armor Coverage 900 Resistance: KI 30 Utility Shielding 66 Phase Shifting 10 Evasion (%) 55 Targeting Accuracy 6 Core Analysis 6 Recoil Reduction 4 Energy Filtering 30 Offensive Hacking 11 Authchip Count 1 Item Schematics ----------------- Adv. Signal Interpreter | -6/Zion | Archive Adv. Trap Extractor | -6/Zion | Archive Adv. Sensor Array | -6/Zion | Archive Imp. Recalibrator | -6/Zion | Archive Coil Gun | -6/Zion | Archive Variable Charge Gun | -6/Zion | Archive Plasma Rifle | -6/Zion | Archive Imp. Force Field | -6/Zion | Archive Dispersion Rifle | -6/Zion | Archive Adv. Heat Sink | -6/Zion | Archive Hvy. Treads | -6/Zion | Archive Antigrav System | -6/Zion | Archive Drone Bay | -6/Zion | Archive Jamming Amplifier | -6/Zion | Archive Imp. Dynamic Insulation System | -6/Zion | Archive Imp. Arc Thrower | -5/Zhirov | Free Exp. Optical Array | -5/Zhirov | Free Exp. Heat Sink | -5/Zhirov | Free Assault Drone Bay | -5/Zhirov | Free Robot Schematics ------------------ K-01 Serf | -6/Zion | Archive B-48 Gladiator | -6/Zion | Archive G-50 Soldier | -6/Zion | Archive X-77 Beamer | -6/Zion | Archive Fabricated ------------ X-77 Beamer | x2 | -4/Factory | Authchip Repaired ---------- Imp. Utility Shielding | 35% | -6/Factory Studied --------- Hvy. Treads | -5/Factory | Hacked Alien Tech Used ----------------- Integrated Dissipator Transdimensional Reconstructor Achievements -------------- A Problem For Future Me Art Critic Bending The Rules Bob, First Of His Name Civilization 2243 DATA ERROR: Steam Global Achievement% Express Service Fixer-Upper For Emergencies Only Heavy Suspicion I Have A Map? I Laugh At Your Crits Immobile And Lovin' It Insider Info Item+ Jackpot Link The Feds Myspace Official Business Organ Harvest Overwhelming Strength In Numbers Survival Of The Most Covered There's More Where That Came From Tune-up Uncivil War Challenges ------------ None Game ------ Seed BombZipMaul Manual? 0 Play Time 02:14:50 Cumulative 728.9 hours Start 2025.10.22 @ 18:24:45 End 2025.10.22 @ 21:52:15 Sessions 5 Manual Loads 0 Difficulty Rogue Special Mode None Game No. 458 Rogue 458 Adventurer 0 Explorer 0 Win Type - Total 10 Types 7/0/1/1/1/0/0/0/0/0 Lore% 78 Gallery% 78 Achievement% 46 Wizard Run 0 Options --------- Layout 0 ASCII 0 Keyboard 0 Movement Mouse Keybinds 1 Fullscreen 2 Font 24/Smallcaps Map View 76x50 Zoom Use 0% Tactical HUD 1 Map Filters NONE Filters NONE Steam 1 RUN: 0f8ccd8b-4901-4605-b1d8-e481a628c0f8